[Event "Early-Titled-Tuesday-Blitz-April-16-2024"]
[Site "Chess.com"]
[Date "2024.04.16"]
[Round "2"]
[White "Fantastic_Power"]
[Black "WindWhistler11"]
[Result "1/2-1/2"]
[WhiteElo "2747"]
[BlackElo "2531"]
[TimeControl "180+1"]
[EndTime "8:18:00 PDT"]
[Termination "Game drawn by repetition"]

1. e4 {[%clk 0:03:00.9]} 1... e6 {[%clk 0:02:53.2]} 2. d4 {[%clk 0:03:00.9]}
2... d5 {[%clk 0:02:53.3]} 3. Nc3 {[%clk 0:03:01.4]} 3... Bb4 {[%clk 0:02:52.8]}
4. e5 {[%clk 0:02:37.1]} 4... Ne7 {[%clk 0:02:53.1]} 5. a3 {[%clk 0:02:36.5]}
5... Ba5 {[%clk 0:02:49]} 6. b4 {[%clk 0:02:34.9]} 6... Bb6 {[%clk 0:02:49.7]}
7. Nf3 {[%clk 0:02:27.8]} 7... a5 {[%clk 0:02:42.2]} 8. Rb1 {[%clk 0:02:26.5]}
8... axb4 {[%clk 0:02:34.9]} 9. axb4 {[%clk 0:02:26.5]} 9... Nbc6 {[%clk
0:02:31.9]} 10. Bb5 {[%clk 0:02:15.7]} 10... Bd7 {[%clk 0:02:29.7]} 11. O-O
{[%clk 0:02:09.9]} 11... Nf5 {[%clk 0:02:27.9]} 12. Bxc6 {[%clk 0:01:55]} 12...
Bxc6 {[%clk 0:02:27.9]} 13. b5 {[%clk 0:01:55.2]} 13... Bd7 {[%clk 0:02:24.7]}
14. Ne2 {[%clk 0:01:55.1]} 14... O-O {[%clk 0:02:14.6]} 15. Ng3 {[%clk
0:01:54.4]} 15... Ra5 {[%clk 0:01:41.3]} 16. Nxf5 {[%clk 0:01:47.2]} 16... exf5
{[%clk 0:01:41]} 17. Qd3 {[%clk 0:01:36]} 17... Qe8 {[%clk 0:01:37.5]} 18. Re1
{[%clk 0:01:36.4]} 18... h6 {[%clk 0:01:13.1]} 19. Bd2 {[%clk 0:01:35.7]} 19...
Rxb5 {[%clk 0:01:12.3]} 20. Rxb5 {[%clk 0:01:35.4]} 20... Bxb5 {[%clk
0:01:13.2]} 21. Qxf5 {[%clk 0:01:35.7]} 21... Qe6 {[%clk 0:01:10.9]} 22. Qh5
{[%clk 0:01:15.2]} 22... Ra8 {[%clk 0:01:06.7]} 23. Bb4 {[%clk 0:01:03]} 23...
Ra2 {[%clk 0:01:01.9]} 24. c3 {[%clk 0:01:02.8]} 24... Bd3 {[%clk 0:00:56.7]}
25. h3 {[%clk 0:00:48.5]} 25... Be4 {[%clk 0:00:52.3]} 26. Qh4 {[%clk
0:00:36.1]} 26... Bxf3 {[%clk 0:00:44.8]} 27. gxf3 {[%clk 0:00:36.8]} 27... c6
{[%clk 0:00:42.2]} 28. Qg4 {[%clk 0:00:32.5]} 28... Ba5 {[%clk 0:00:35.3]} 29.
Bxa5 {[%clk 0:00:22.5]} 29... Rxa5 {[%clk 0:00:36.2]} 30. f4 {[%clk 0:00:22.8]}
30... Qxg4+ {[%clk 0:00:28.9]} 31. hxg4 {[%clk 0:00:23.7]} 31... Ra4 {[%clk
0:00:25.9]} 32. Kg2 {[%clk 0:00:20.1]} 32... Rc4 {[%clk 0:00:26]} 33. Re3 {[%clk
0:00:19.8]} 33... Kf8 {[%clk 0:00:20.9]} 34. Kg3 {[%clk 0:00:18.5]} 34... Ke7
{[%clk 0:00:20.2]} 35. f5 {[%clk 0:00:19]} 35... b5 {[%clk 0:00:18.8]} 36. Rd3
{[%clk 0:00:15.5]} 36... Kd7 {[%clk 0:00:09.6]} 37. f4 {[%clk 0:00:15.2]} 37...
Ke7 {[%clk 0:00:07.4]} 38. g5 {[%clk 0:00:15.3]} 38... hxg5 {[%clk 0:00:03.1]}
39. fxg5 {[%clk 0:00:16.2]} 39... g6 {[%clk 0:00:03.8]} 40. Kf4 {[%clk
0:00:07.4]} 40... gxf5 {[%clk 0:00:03.6]} 41. Kxf5 {[%clk 0:00:07.6]} 41... c5
{[%clk 0:00:02.9]} 42. dxc5 {[%clk 0:00:04.8]} 42... Rxc5 {[%clk 0:00:03.8]} 43.
Rh3 {[%clk 0:00:04.5]} 43... Rc4 {[%clk 0:00:03.5]} 44. Rd3 {[%clk 0:00:02.4]}
44... Rc5 {[%clk 0:00:02.9]} 45. Rg3 {[%clk 0:00:02.3]} 45... Rc4 {[%clk
0:00:02.8]} 46. Rd3 {[%clk 0:00:02.8]} 46... Rc5 {[%clk 0:00:03]} 1/2-1/2

[Event "Early-Titled-Tuesday-Blitz-April-16-2024"]
[Site "Chess.com"]
[Date "2024.04.16"]
[Round "2"]
[White "AlessiaSanteramo"]
[Black "alpope"]
[Result "1-0"]
[WhiteElo "2325"]
[BlackElo "2511"]
[TimeControl "180+1"]
[EndTime "8:18:00 PDT"]
[Termination "AlessiaSanteramo won by resignation"]

1. e4 {[%clk 0:02:46.4]} 1... g6 {[%clk 0:02:59.6]} 2. d4 {[%clk 0:02:45.8]}
2... Bg7 {[%clk 0:02:59.9]} 3. Nf3 {[%clk 0:02:34.9]} 3... d6 {[%clk 0:02:59.9]}
4. Nc3 {[%clk 0:02:26.1]} 4... a6 {[%clk 0:02:59.7]} 5. Bd3 {[%clk 0:02:22.1]}
5... b5 {[%clk 0:02:57.7]} 6. e5 {[%clk 0:02:15.2]} 6... Nd7 {[%clk 0:01:54.5]}
7. e6 {[%clk 0:02:10.4]} 7... fxe6 {[%clk 0:01:54.4]} 8. Ng5 {[%clk 0:02:10.7]}
8... Nf8 {[%clk 0:01:54.9]} 9. Qf3 {[%clk 0:02:08.8]} 9... Nf6 {[%clk 0:01:54]}
10. Qxa8 {[%clk 0:02:08.3]} 10... h6 {[%clk 0:01:40.7]} 11. Nge4 {[%clk
0:01:49.7]} 11... d5 {[%clk 0:01:22.3]} 12. Nc5 {[%clk 0:01:39.2]} 12... Kf7
{[%clk 0:01:16.1]} 13. O-O {[%clk 0:01:24]} 13... N8d7 {[%clk 0:01:14.6]} 14.
Nxe6 {[%clk 0:00:56.1]} 14... Kxe6 {[%clk 0:01:00]} 15. Bxg6 {[%clk 0:00:55.9]}
15... Nb6 {[%clk 0:00:40.8]} 16. Qc6+ {[%clk 0:00:53.5]} 16... Qd6 {[%clk
0:00:40.1]} 17. Re1+ {[%clk 0:00:36.8]} 17... Ne4 {[%clk 0:00:40.6]} 18. Qxd6+
{[%clk 0:00:35.4]} 18... Kxd6 {[%clk 0:00:38.5]} 19. Nxe4+ {[%clk 0:00:34.8]}
19... dxe4 {[%clk 0:00:37.9]} 20. Bf4+ {[%clk 0:00:34.1]} 20... e5 {[%clk
0:00:26.5]} 21. dxe5+ {[%clk 0:00:33]} 21... Ke7 {[%clk 0:00:26.4]} 22. Bxe4
{[%clk 0:00:30.9]} 22... Be6 {[%clk 0:00:27]} 23. b3 {[%clk 0:00:27.5]} 23...
Rf8 {[%clk 0:00:25.4]} 24. Be3 {[%clk 0:00:25.2]} 24... Bxe5 {[%clk 0:00:23.9]}
25. Rad1 {[%clk 0:00:13.6]} 25... Nd7 {[%clk 0:00:24.1]} 26. Bc6 {[%clk
0:00:11.6]} 26... Bd6 {[%clk 0:00:23.2]} 27. Bxh6 {[%clk 0:00:10.1]} 27... Rg8
{[%clk 0:00:19.5]} 28. Bd5 {[%clk 0:00:09.4]} 28... Nc5 {[%clk 0:00:18.6]} 29.
Be3 {[%clk 0:00:07.9]} 29... Bxd5 {[%clk 0:00:16.2]} 30. Bxc5+ {[%clk
0:00:07.2]} 30... Be6 {[%clk 0:00:15.6]} 31. Bxd6+ {[%clk 0:00:07.5]} 31... cxd6
{[%clk 0:00:16.3]} 32. Rd3 {[%clk 0:00:08.1]} 32... Kd7 {[%clk 0:00:15.7]} 33.
Rde3 {[%clk 0:00:08.2]} 33... Bf5 {[%clk 0:00:16.2]} 34. c3 {[%clk 0:00:07.8]}
34... d5 {[%clk 0:00:14.7]} 35. g3 {[%clk 0:00:07.9]} 35... Be4 {[%clk
0:00:14.7]} 36. f3 {[%clk 0:00:07.7]} 36... Bg6 {[%clk 0:00:15]} 37. Kf2 {[%clk
0:00:08.3]} 37... Rc8 {[%clk 0:00:14.8]} 38. Re7+ {[%clk 0:00:08.8]} 38... Kd8
{[%clk 0:00:14.6]} 39. R1e3 {[%clk 0:00:08.5]} 39... Rxc3 {[%clk 0:00:14.7]} 40.
Rxc3 {[%clk 0:00:08.3]} 40... Kxe7 {[%clk 0:00:15.4]} 41. Rc6 {[%clk 0:00:08.8]}
41... Bb1 {[%clk 0:00:14.6]} 42. Rxa6 {[%clk 0:00:09]} 42... Kd7 {[%clk
0:00:14.9]} 43. Ke3 {[%clk 0:00:09.7]} 43... Bc2 {[%clk 0:00:14.6]} 44. Kd4
{[%clk 0:00:10.1]} 44... Bd1 {[%clk 0:00:14.1]} 45. h4 {[%clk 0:00:10.3]} 45...
Bxf3 {[%clk 0:00:14.6]} 46. Rb6 {[%clk 0:00:10.3]} 46... Kc7 {[%clk 0:00:14.6]}
47. Rxb5 {[%clk 0:00:09.9]} 47... Kc6 {[%clk 0:00:15.5]} 48. Rc5+ {[%clk
0:00:10.8]} 48... Kd6 {[%clk 0:00:15.5]} 49. a4 {[%clk 0:00:11.4]} 49... Bd1
{[%clk 0:00:15.6]} 50. Rb5 {[%clk 0:00:11.8]} 50... Kc6 {[%clk 0:00:15.6]} 51.
h5 {[%clk 0:00:10.5]} 51... Bxh5 {[%clk 0:00:15.5]} 52. Rxd5 {[%clk 0:00:11.2]}
52... Bd1 {[%clk 0:00:15.6]} 53. Rc5+ {[%clk 0:00:12]} 53... Kb6 {[%clk
0:00:15.7]} 54. a5+ {[%clk 0:00:12.9]} 54... Ka6 {[%clk 0:00:15.5]} 55. b4
{[%clk 0:00:13.8]} 55... Be2 {[%clk 0:00:16]} 56. b5+ {[%clk 0:00:12.2]} 56...
Bxb5 {[%clk 0:00:15.6]} 57. Rxb5 {[%clk 0:00:11.8]} 57... Kxb5 {[%clk
0:00:16.5]} 58. g4 {[%clk 0:00:12.3]} 58... Kxa5 {[%clk 0:00:17.2]} 59. g5
{[%clk 0:00:12.9]} 59... Kb6 {[%clk 0:00:18.1]} 60. g6 {[%clk 0:00:13.5]} 1-0

[Event "Early-Titled-Tuesday-Blitz-April-16-2024"]
[Site "Chess.com"]
[Date "2024.04.16"]
[Round "2"]
[White "bascheyaro"]
[Black "AlphaGoosee"]
[Result "0-1"]
[WhiteElo "2837"]
[BlackElo "2589"]
[TimeControl "180+1"]
[EndTime "8:18:02 PDT"]
[Termination "AlphaGoosee won by resignation"]

1. d4 {[%clk 0:03:00.9]} 1... d5 {[%clk 0:03:00.2]} 2. c4 {[%clk 0:03:01.2]}
2... dxc4 {[%clk 0:03:01.1]} 3. Nc3 {[%clk 0:03:01.6]} 3... a6 {[%clk
0:03:01.1]} 4. Bf4 {[%clk 0:03:01.3]} 4... Nf6 {[%clk 0:02:56.1]} 5. e3 {[%clk
0:03:01.3]} 5... b5 {[%clk 0:02:56.2]} 6. a4 {[%clk 0:03:01.7]} 6... b4 {[%clk
0:02:38.8]} 7. Na2 {[%clk 0:03:01.4]} 7... e6 {[%clk 0:02:33.4]} 8. Bxc4 {[%clk
0:03:00.7]} 8... Bb7 {[%clk 0:02:32.9]} 9. Nf3 {[%clk 0:03:00.8]} 9... Be7
{[%clk 0:02:33.3]} 10. Nc1 {[%clk 0:02:59.4]} 10... a5 {[%clk 0:02:31.5]} 11.
Nb3 {[%clk 0:02:57.9]} 11... O-O {[%clk 0:02:30.7]} 12. O-O {[%clk 0:02:54.7]}
12... Nbd7 {[%clk 0:02:30.7]} 13. Ne5 {[%clk 0:02:49.5]} 13... Nxe5 {[%clk
0:02:27.1]} 14. Bxe5 {[%clk 0:02:48.9]} 14... Qd7 {[%clk 0:02:15.1]} 15. Bb5
{[%clk 0:02:45.1]} 15... Qd5 {[%clk 0:02:11.4]} 16. f3 {[%clk 0:02:40.4]} 16...
c6 {[%clk 0:02:08.9]} 17. e4 {[%clk 0:02:24.9]} 17... Qd8 {[%clk 0:02:00.6]} 18.
Bc4 {[%clk 0:02:25]} 18... Nd7 {[%clk 0:02:00.6]} 19. Bg3 {[%clk 0:02:23.2]}
19... c5 {[%clk 0:01:59.3]} 20. d5 {[%clk 0:02:02.7]} 20... Nb6 {[%clk
0:01:55.5]} 21. d6 {[%clk 0:02:02.7]} 21... Nxc4 {[%clk 0:01:54]} 22. dxe7
{[%clk 0:02:02.6]} 22... Qxe7 {[%clk 0:01:54.7]} 23. Qd3 {[%clk 0:02:02.6]}
23... Ba6 {[%clk 0:01:49.1]} 24. Rf2 {[%clk 0:01:48.6]} 24... Rfd8 {[%clk
0:01:44.1]} 25. Qc2 {[%clk 0:01:48.5]} 25... Rac8 {[%clk 0:01:41.8]} 26. Bf4
{[%clk 0:01:36.6]} 26... e5 {[%clk 0:01:27.8]} 27. Bc1 {[%clk 0:01:36.5]} 27...
Rd7 {[%clk 0:01:25.6]} 28. Qe2 {[%clk 0:01:14.7]} 28... Qe6 {[%clk 0:01:20.3]}
29. Qe1 {[%clk 0:01:12.7]} 29... f6 {[%clk 0:01:09.6]} 30. h3 {[%clk 0:01:11.6]}
30... Qb6 {[%clk 0:01:09]} 31. Kh2 {[%clk 0:01:08.8]} 31... Rcd8 {[%clk
0:01:09.2]} 32. Nd2 {[%clk 0:01:08.9]} 32... Nxd2 {[%clk 0:01:09.2]} 33. Rxd2
{[%clk 0:01:09.1]} 33... Rxd2 {[%clk 0:01:09.3]} 34. Bxd2 {[%clk 0:01:10]} 34...
c4 {[%clk 0:01:09.8]} 35. Be3 {[%clk 0:01:08.2]} 35... Qd6 {[%clk 0:01:09.8]}
36. Qf2 {[%clk 0:01:07.1]} 36... b3 {[%clk 0:00:37.5]} 37. Bb6 {[%clk
0:00:18.7]} 37... Qd2 {[%clk 0:00:37.2]} 38. Rf1 {[%clk 0:00:17.3]} 38... Rd6
{[%clk 0:00:19.7]} 39. Qc5 {[%clk 0:00:17]} 39... c3 {[%clk 0:00:18.5]} 40. Rf2
{[%clk 0:00:16.9]} 40... Qd4 {[%clk 0:00:17.8]} 41. Qxa5 {[%clk 0:00:16.5]}
41... Qxb6 {[%clk 0:00:17.5]} 42. Qxb6 {[%clk 0:00:09.8]} 42... Rxb6 {[%clk
0:00:18.4]} 43. a5 {[%clk 0:00:07.3]} 43... c2 {[%clk 0:00:14.2]} 44. axb6
{[%clk 0:00:06.8]} 44... c1=Q {[%clk 0:00:14.6]} 45. f4 {[%clk 0:00:07.5]} 45...
Qe3 {[%clk 0:00:13.7]} 46. Rf3 {[%clk 0:00:07.8]} 46... Qxb6 {[%clk 0:00:14.3]}
47. fxe5 {[%clk 0:00:07.9]} 47... fxe5 {[%clk 0:00:15.2]} 48. Kg3 {[%clk
0:00:08.3]} 48... Qd4 {[%clk 0:00:13]} 49. Rxb3 {[%clk 0:00:08.5]} 49... Qxe4
{[%clk 0:00:13.1]} 50. Rb8+ {[%clk 0:00:08.6]} 50... Kf7 {[%clk 0:00:13.4]} 51.
Kh2 {[%clk 0:00:09.5]} 51... Bb7 {[%clk 0:00:14]} 52. Rxb7+ {[%clk 0:00:08.4]}
52... Qxb7 {[%clk 0:00:14.7]} 0-1

[Event "Early-Titled-Tuesday-Blitz-April-16-2024"]
[Site "Chess.com"]
[Date "2024.04.16"]
[Round "2"]
[White "soumeow"]
[Black "andrew-blr"]
[Result "0-1"]
[WhiteElo "2374"]
[BlackElo "2653"]
[TimeControl "180+1"]
[EndTime "8:18:03 PDT"]
[Termination "andrew-blr won by resignation"]

1. e4 {[%clk 0:02:59.4]} 1... c5 {[%clk 0:02:57.9]} 2. Nf3 {[%clk 0:02:59.4]}
2... e6 {[%clk 0:02:57.7]} 3. d4 {[%clk 0:02:57.5]} 3... cxd4 {[%clk 0:02:57.5]}
4. Nxd4 {[%clk 0:02:58.2]} 4... Bc5 {[%clk 0:02:57.8]} 5. Nb3 {[%clk 0:02:53.8]}
5... Bb6 {[%clk 0:02:57.8]} 6. c4 {[%clk 0:02:41.2]} 6... Ne7 {[%clk 0:02:57.2]}
7. c5 {[%clk 0:02:37.6]} 7... Bc7 {[%clk 0:02:55.5]} 8. Nc3 {[%clk 0:02:30.3]}
8... O-O {[%clk 0:02:54.6]} 9. Bg5 {[%clk 0:02:28.4]} 9... b6 {[%clk 0:02:48.8]}
10. Nb5 {[%clk 0:02:23.2]} 10... Be5 {[%clk 0:02:45.9]} 11. f4 {[%clk
0:02:13.6]} 11... Bxb2 {[%clk 0:02:33]} 12. Rb1 {[%clk 0:02:13.2]} 12... Bf6
{[%clk 0:02:32.5]} 13. Bxf6 {[%clk 0:02:10.3]} 13... gxf6 {[%clk 0:02:32.6]} 14.
e5 {[%clk 0:01:52.1]} 14... f5 {[%clk 0:02:25.4]} 15. cxb6 {[%clk 0:01:46]}
15... axb6 {[%clk 0:02:22.5]} 16. Rb2 {[%clk 0:01:37.8]} 16... Ba6 {[%clk
0:02:20.2]} 17. Nd6 {[%clk 0:01:36.8]} 17... Bxf1 {[%clk 0:02:14.4]} 18. Rxf1
{[%clk 0:01:37.7]} 18... Nd5 {[%clk 0:02:14.2]} 19. Rf3 {[%clk 0:01:35.1]} 19...
Qh4+ {[%clk 0:01:52.4]} 20. Rbf2 {[%clk 0:01:28]} 20... Kh8 {[%clk 0:01:46.9]}
21. Rh3 {[%clk 0:01:25.1]} 21... Qg4 {[%clk 0:01:46.3]} 22. Rhf3 {[%clk
0:00:58.5]} 22... Nc6 {[%clk 0:01:27]} 23. Qe2 {[%clk 0:00:45.1]} 23... Ra4
{[%clk 0:01:21.5]} 24. Qd2 {[%clk 0:00:35.4]} 24... Ncb4 {[%clk 0:00:52.7]} 25.
Nc1 {[%clk 0:00:34.8]} 25... Ra5 {[%clk 0:00:48.7]} 26. Rg3 {[%clk 0:00:31.3]}
26... Qh4 {[%clk 0:00:47.9]} 27. Rh3 {[%clk 0:00:31]} 27... Qe7 {[%clk 0:00:44]}
28. Qd1 {[%clk 0:00:17]} 28... f6 {[%clk 0:00:42.5]} 29. Qh5 {[%clk 0:00:14.3]}
29... fxe5 {[%clk 0:00:32.3]} 30. fxe5 {[%clk 0:00:14.1]} 30... Qg7 {[%clk
0:00:32.5]} 31. Rff3 {[%clk 0:00:10.6]} 31... Qxe5+ {[%clk 0:00:28.8]} 32. Re3
{[%clk 0:00:10.6]} 32... Qg7 {[%clk 0:00:27.3]} 33. Reg3 {[%clk 0:00:09.9]}
33... Qe7 {[%clk 0:00:21.4]} 34. Ne2 {[%clk 0:00:07.5]} 34... Nc2+ {[%clk
0:00:20.1]} 35. Kf2 {[%clk 0:00:07.4]} 35... Nce3 {[%clk 0:00:19.9]} 36. Rg6
{[%clk 0:00:06.6]} 36... Ng4+ {[%clk 0:00:18.6]} 37. Rxg4 {[%clk 0:00:06.4]}
37... fxg4+ {[%clk 0:00:18.7]} 38. Kg1 {[%clk 0:00:06.1]} 38... Nf6 {[%clk
0:00:18.8]} 39. Qh6 {[%clk 0:00:05.6]} 39... Qg7 {[%clk 0:00:18.9]} 40. Qxg7+
{[%clk 0:00:05.2]} 40... Kxg7 {[%clk 0:00:18.7]} 41. Rb3 {[%clk 0:00:05.9]}
41... Rxa2 {[%clk 0:00:17.9]} 42. Ng3 {[%clk 0:00:06.5]} 42... Nd5 {[%clk
0:00:16.9]} 43. h4 {[%clk 0:00:05.8]} 43... gxh3 {[%clk 0:00:16.2]} 44. gxh3
{[%clk 0:00:06.7]} 44... Nf4 {[%clk 0:00:16.3]} 45. Rxb6 {[%clk 0:00:06.7]}
45... Nxh3+ {[%clk 0:00:16.2]} 46. Kh1 {[%clk 0:00:06.9]} 46... Nf2+ {[%clk
0:00:16.5]} 47. Kg1 {[%clk 0:00:07.1]} 47... Ng4 {[%clk 0:00:16.4]} 48. Rb7
{[%clk 0:00:06.8]} 48... Rff2 {[%clk 0:00:14.9]} 49. Rxd7+ {[%clk 0:00:06.5]}
49... Kg6 {[%clk 0:00:15.1]} 50. Nde4 {[%clk 0:00:07.4]} 50... Ra1+ {[%clk
0:00:14.8]} 0-1

[Event "Early-Titled-Tuesday-Blitz-April-16-2024"]
[Site "Chess.com"]
[Date "2024.04.16"]
[Round "2"]
[White "CrushingKings"]
[Black "MatthewG-p4p"]
[Result "1-0"]
[WhiteElo "2598"]
[BlackElo "2854"]
[TimeControl "180+1"]
[EndTime "8:18:04 PDT"]
[Termination "CrushingKings won by resignation"]

1. Nf3 {[%clk 0:03:00.9]} 1... c5 {[%clk 0:02:56.5]} 2. g3 {[%clk 0:03:01.2]}
2... g6 {[%clk 0:02:56.2]} 3. Bg2 {[%clk 0:03:01.5]} 3... Bg7 {[%clk 0:02:56.9]}
4. O-O {[%clk 0:03:02.1]} 4... Nc6 {[%clk 0:02:57.5]} 5. c4 {[%clk 0:03:02.5]}
5... e6 {[%clk 0:02:56.2]} 6. Nc3 {[%clk 0:03:00.6]} 6... Nge7 {[%clk
0:02:56.8]} 7. d4 {[%clk 0:02:54.1]} 7... Nxd4 {[%clk 0:02:55.9]} 8. Nxd4 {[%clk
0:02:53.4]} 8... cxd4 {[%clk 0:02:56.8]} 9. Nb5 {[%clk 0:02:53.1]} 9... Nf5
{[%clk 0:01:59.5]} 10. g4 {[%clk 0:02:42.1]} 10... a6 {[%clk 0:01:59.9]} 11. Qa4
{[%clk 0:02:33.4]} 11... Nh4 {[%clk 0:01:40.8]} 12. Nd6+ {[%clk 0:02:33]} 12...
Kf8 {[%clk 0:01:40.8]} 13. Bh1 {[%clk 0:02:27.3]} 13... h5 {[%clk 0:01:28.9]}
14. g5 {[%clk 0:02:24.2]} 14... Be5 {[%clk 0:01:27.4]} 15. Nxb7 {[%clk
0:02:16.9]} 15... Qc7 {[%clk 0:01:03]} 16. f4 {[%clk 0:02:16]} 16... Bxb7 {[%clk
0:01:01]} 17. Qb4+ {[%clk 0:02:16.3]} 17... Kg7 {[%clk 0:00:48.9]} 18. Qxb7
{[%clk 0:02:13.5]} 18... Rab8 {[%clk 0:00:41.4]} 19. Qxc7 {[%clk 0:01:54.5]}
19... Bxc7 {[%clk 0:00:41.4]} 20. b3 {[%clk 0:01:51]} 20... Kh7 {[%clk
0:00:35.1]} 21. Bb2 {[%clk 0:01:24]} 21... Bb6 {[%clk 0:00:35.5]} 22. Kf2 {[%clk
0:01:24.6]} 22... Nf5 {[%clk 0:00:34.4]} 23. Rfe1 {[%clk 0:01:13.8]} 23... Rhc8
{[%clk 0:00:29.9]} 24. Be4 {[%clk 0:01:11.1]} 24... Ne3 {[%clk 0:00:20]} 25. Bd3
{[%clk 0:01:06.5]} 25... Bc5 {[%clk 0:00:18.2]} 26. Rec1 {[%clk 0:01:04.3]}
26... a5 {[%clk 0:00:18.4]} 27. Rab1 {[%clk 0:01:04]} 27... Kg8 {[%clk
0:00:17.8]} 28. Kf3 {[%clk 0:01:01.7]} 28... Rc7 {[%clk 0:00:17.8]} 29. h3
{[%clk 0:01:01.2]} 29... a4 {[%clk 0:00:14.8]} 30. bxa4 {[%clk 0:00:55.2]} 30...
Ra8 {[%clk 0:00:15.2]} 31. Ba1 {[%clk 0:00:37.6]} 31... Rxa4 {[%clk 0:00:10]}
32. Rb8+ {[%clk 0:00:38.2]} 32... Kh7 {[%clk 0:00:10.7]} 33. Rb5 {[%clk
0:00:36.7]} 33... d6 {[%clk 0:00:10.1]} 34. Rcb1 {[%clk 0:00:28.7]} 34... Rxa2
{[%clk 0:00:10]} 35. Bb2 {[%clk 0:00:29.4]} 35... Raa7 {[%clk 0:00:07.3]} 36.
Bc1 {[%clk 0:00:27.9]} 36... Kg7 {[%clk 0:00:06.9]} 37. Rb8 {[%clk 0:00:26.4]}
37... Re7 {[%clk 0:00:04.8]} 38. Bxe3 {[%clk 0:00:21.4]} 38... dxe3 {[%clk
0:00:05]} 39. Be4 {[%clk 0:00:22.1]} 39... f6 {[%clk 0:00:05.2]} 40. gxf6+
{[%clk 0:00:17.5]} 40... Kxf6 {[%clk 0:00:05.6]} 41. Rg1 {[%clk 0:00:18.3]}
41... Rg7 {[%clk 0:00:06.2]} 42. h4 {[%clk 0:00:17.4]} 42... Rae7 {[%clk
0:00:05.3]} 43. Rf8+ {[%clk 0:00:16.4]} 43... Ref7 {[%clk 0:00:06]} 44. Re8
{[%clk 0:00:17]} 44... Rd7 {[%clk 0:00:04.7]} 45. Rh8 {[%clk 0:00:17.5]} 45...
d5 {[%clk 0:00:04.8]} 46. cxd5 {[%clk 0:00:17.3]} 46... exd5 {[%clk 0:00:05.7]}
47. Bd3 {[%clk 0:00:18]} 47... d4 {[%clk 0:00:06]} 48. Rh6 {[%clk 0:00:17.9]}
48... Be7 {[%clk 0:00:05.6]} 49. Bxg6 {[%clk 0:00:17.6]} 49... Rxg6 {[%clk
0:00:01.5]} 50. Rhxg6+ {[%clk 0:00:16.1]} 50... Kf7 {[%clk 0:00:02.4]} 51. Rh6
{[%clk 0:00:15.8]} 51... Ra7 {[%clk 0:00:02]} 52. Rh7+ {[%clk 0:00:15.7]} 52...
Ke6 {[%clk 0:00:02.2]} 53. Rg6+ {[%clk 0:00:15.8]} 53... Kf5 {[%clk 0:00:02.3]}
54. Rb6 {[%clk 0:00:11.1]} 54... Bf6 {[%clk 0:00:01.5]} 55. Rxa7 {[%clk
0:00:10.7]} 1-0

[Event "Early-Titled-Tuesday-Blitz-April-16-2024"]
[Site "Chess.com"]
[Date "2024.04.16"]
[Round "2"]
[White "Egor_Koshulyan"]
[Black "kuba2006"]
[Result "0-1"]
[WhiteElo "2731"]
[BlackElo "2531"]
[TimeControl "180+1"]
[EndTime "8:18:05 PDT"]
[Termination "kuba2006 won by checkmate"]

1. e4 {[%clk 0:03:00.9]} 1... Nf6 {[%clk 0:02:58.2]} 2. e5 {[%clk 0:03:00.3]}
2... Nd5 {[%clk 0:02:56.6]} 3. d4 {[%clk 0:03:00.6]} 3... d6 {[%clk 0:02:56.4]}
4. Nf3 {[%clk 0:03:01.2]} 4... Bg4 {[%clk 0:02:55]} 5. Be2 {[%clk 0:02:43.6]}
5... c6 {[%clk 0:02:53.9]} 6. O-O {[%clk 0:02:43.4]} 6... Bxf3 {[%clk
0:02:53.4]} 7. Bxf3 {[%clk 0:02:44.3]} 7... dxe5 {[%clk 0:02:53.7]} 8. dxe5
{[%clk 0:02:45.2]} 8... e6 {[%clk 0:02:54.2]} 9. Qe2 {[%clk 0:02:39.8]} 9... Nd7
{[%clk 0:02:53.1]} 10. c4 {[%clk 0:02:37.5]} 10... Ne7 {[%clk 0:02:52.5]} 11.
Bf4 {[%clk 0:02:27.9]} 11... Ng6 {[%clk 0:02:51.1]} 12. Bg3 {[%clk 0:02:28.3]}
12... Qa5 {[%clk 0:02:47.4]} 13. Re1 {[%clk 0:02:06.3]} 13... Bb4 {[%clk
0:02:44.1]} 14. Nc3 {[%clk 0:02:06.6]} 14... Bxc3 {[%clk 0:02:43.1]} 15. bxc3
{[%clk 0:02:07.5]} 15... O-O {[%clk 0:02:15]} 16. h4 {[%clk 0:02:07.3]} 16... h6
{[%clk 0:02:09.4]} 17. Rab1 {[%clk 0:01:33.2]} 17... Nc5 {[%clk 0:02:03.2]} 18.
h5 {[%clk 0:01:16.4]} 18... Ne7 {[%clk 0:02:02]} 19. Bf4 {[%clk 0:01:16.4]}
19... Rad8 {[%clk 0:01:55]} 20. Be3 {[%clk 0:01:12.6]} 20... Nd3 {[%clk
0:01:48.6]} 21. Red1 {[%clk 0:01:11.9]} 21... Nxe5 {[%clk 0:01:47.7]} 22. Rxb7
{[%clk 0:01:09.6]} 22... Nf5 {[%clk 0:01:43.6]} 23. Rxa7 {[%clk 0:01:05]} 23...
Qxc3 {[%clk 0:01:40.7]} 24. Rc1 {[%clk 0:00:43.7]} 24... Nxf3+ {[%clk
0:01:23.5]} 25. Qxf3 {[%clk 0:00:42.6]} 25... Qb2 {[%clk 0:01:21.3]} 26. Re1
{[%clk 0:00:38.2]} 26... Ra8 {[%clk 0:01:08.7]} 27. Rxa8 {[%clk 0:00:30.4]}
27... Rxa8 {[%clk 0:01:09.6]} 28. Qxc6 {[%clk 0:00:31]} 28... Qxa2 {[%clk
0:01:01.2]} 29. c5 {[%clk 0:00:21.3]} 29... Rd8 {[%clk 0:00:31.7]} 30. Qc7
{[%clk 0:00:17]} 30... Qd5 {[%clk 0:00:31.7]} 31. c6 {[%clk 0:00:12.5]} 31...
Nh4 {[%clk 0:00:26.4]} 32. f3 {[%clk 0:00:07.1]} 32... Nf5 {[%clk 0:00:21.7]}
33. Bf2 {[%clk 0:00:05.5]} 33... Nd4 {[%clk 0:00:18.4]} 34. Bxd4 {[%clk
0:00:03]} 34... Qxd4+ {[%clk 0:00:19.3]} 35. Kh1 {[%clk 0:00:03.5]} 35... Qh4+
{[%clk 0:00:19]} 36. Kg1 {[%clk 0:00:02.7]} 36... Qxe1+ {[%clk 0:00:19.9]} 37.
Kh2 {[%clk 0:00:03.6]} 37... Qh4+ {[%clk 0:00:15.4]} 38. Kg1 {[%clk 0:00:04]}
38... Qd4+ {[%clk 0:00:15.5]} 39. Kh1 {[%clk 0:00:01.9]} 39... Qd1+ {[%clk
0:00:15.4]} 40. Kh2 {[%clk 0:00:02.6]} 40... Qd6+ {[%clk 0:00:15.6]} 41. Qxd6
{[%clk 0:00:03.5]} 41... Rxd6 {[%clk 0:00:16.4]} 42. c7 {[%clk 0:00:04]} 42...
Rc6 {[%clk 0:00:16.7]} 43. c8=Q+ {[%clk 0:00:04.9]} 43... Rxc8 {[%clk
0:00:16.8]} 44. Kg3 {[%clk 0:00:04.8]} 44... Rc4 {[%clk 0:00:15.6]} 45. f4
{[%clk 0:00:05.1]} 45... f5 {[%clk 0:00:15.8]} 46. Kh4 {[%clk 0:00:05.4]} 46...
Rxf4+ {[%clk 0:00:15.8]} 47. Kh3 {[%clk 0:00:06]} 47... Rg4 {[%clk 0:00:16.2]}
48. g3 {[%clk 0:00:06.9]} 48... Kf7 {[%clk 0:00:16.8]} 49. Kg2 {[%clk
0:00:07.8]} 49... Kf6 {[%clk 0:00:17.7]} 50. Kh2 {[%clk 0:00:08.7]} 50... Kg5
{[%clk 0:00:18.6]} 51. Kh3 {[%clk 0:00:09.6]} 51... Kxh5 {[%clk 0:00:19.5]} 52.
Kh2 {[%clk 0:00:10.5]} 52... Kg5 {[%clk 0:00:20.3]} 53. Kh3 {[%clk 0:00:11.4]}
53... h5 {[%clk 0:00:21]} 54. Kh2 {[%clk 0:00:12.3]} 54... f4 {[%clk 0:00:20.5]}
55. Kh3 {[%clk 0:00:13.2]} 55... Rxg3+ {[%clk 0:00:19.9]} 56. Kh2 {[%clk
0:00:14.1]} 56... e5 {[%clk 0:00:20.5]} 57. Kh1 {[%clk 0:00:15]} 57... Kf5
{[%clk 0:00:20.1]} 58. Kh2 {[%clk 0:00:15.9]} 58... Ke4 {[%clk 0:00:21]} 59. Kh1
{[%clk 0:00:16.8]} 59... g5 {[%clk 0:00:21.8]} 60. Kh2 {[%clk 0:00:17.7]} 60...
Kf3 {[%clk 0:00:22.5]} 61. Kh1 {[%clk 0:00:18.6]} 61... Kf2 {[%clk 0:00:23.4]}
62. Kh2 {[%clk 0:00:19.5]} 62... Rg4 {[%clk 0:00:23.9]} 63. Kh1 {[%clk
0:00:20.4]} 63... Rh4# {[%clk 0:00:24.8]} 0-1